Cogmind - Beta 16.1 @@@ ROGUE MODE // 2026.02.01 @ 22:36:37 Player: Selene Result: Destroyed by Executioner with Helical Railgun Performance ------------- Evolutions (8) 4000 Regions Visited (24) 4800 Robots Destroyed (380) 1900 Value Destroyed (16765) 16765 Prototype IDs (117) 2340 Alien Tech Used (2) 400 Bonus (9032) 9032 TOTAL SCORE: 39237 Bonus ------- High Alert Combat Kills 4680 Follower Combat Kills 2117 Hunted by Unchained 500 Registered with UFD 300 Met Optimus in HQ 500 Met R17 at Cetus 500 Hacked Protovariant 500 Met Optimus at Protoforge 1000 Friendly Fire -1065 Cogmind --------- Core Integrity 0/1450 Matter 206/300 Energy 569/575 System Corruption 14% Temperature Cool (0) Movement Walking (111) Location -2/Protoforge Parts ------- > --- POWER (2) -------- Reinforced Antimatter Reactor Improved Quantum Reactor > --- PROPULSION (8) --- Myomer Leg Myomer Leg Biometal Leg Biometal Leg Biometal Leg Enhanced Biometal Leg > --- UTILITY (10) ----- Experimental Cooling System Large Storage Unit Experimental Optical Array Experimental Targeting Computer Experimental Targeting Computer Experimental Targeting Computer Experimental Core Analyzer Advanced Kinecellerator Makeshift Medium Armor Plating Centrium Light Armor Plating > --- WEAPON (3) ------- Helical Railgun Helical Railgun Advanced Micro-nuke Launcher > --- INVENTORY (15) --- Subatomic Replicator Helical Railgun Helical Railgun Concept XC Strikerail Concept XC Strikerail Concept XC Strikerail Peak State ------------ > --- POWER ------------ Light Antimatter Reactor Micro Antimatter Reactor > --- PROPULSION ------- Biometal Leg Experimental Biometal Leg Experimental Biometal Leg Experimental VSS Leg Experimental VSS Leg Experimental VSS Leg Impulse Thruster Array > --- UTILITY ---------- Large Storage Unit Spectral Analyzer Experimental Sensor Array Experimental Signal Interpreter Long-range Terrain Scanner Experimental Terrain Scan Processor Experimental Targeting Computer Experimental Core Analyzer Experimental Reaction Control System Centrium Medium Armor Plating > --- WEAPON ----------- Hypervelocity Railgun Concept XC Strikerail Concept XC Strikerail > --- INVENTORY -------- Micro Antimatter Reactor Experimental Cooling System Makeshift Coolant Network Advanced Melee Analysis Suite Advanced Transmission Jammer Centrium Light Armor Plating Advanced Dynamic Insulation System Crosscalibrator Subatomic Replicator Enhanced Nova Cannon Concept XC Strikerail Concept XC Strikerail Advanced Micro-nuke Launcher [Rating: 212] Favorites ----------- Power Quantum Reactor Engine Light Angular Momentum Engine Power Core Light Nuclear Core Reactor Quantum Reactor Propulsion Light Treads Treads Light Treads Leg Improved Titanium Leg Wheel Wheel Hover Unit Aerolev Unit Flight Unit Nuclear Pulse Array Utility Blink Core Device Blink Core Storage Large Storage Unit Processor Improved Signal Interpreter Hackware Improved Hacking Suite Protection Centrium Medium Armor Plating Weapon Advanced KE Penetrator Energy Gun Improved Medium Laser Energy Cannon Enhanced Nova Cannon Ballistic Gun Advanced KE Penetrator Ballistic Cannon Assault Cannon Launcher Rocket Launcher Special Weapon CPS Tube Impact Weapon Gravity Flail Slashing Weapon Ripper Piercing Weapon Force Lance Build | -11 -10 -10 -9 -9 -9 -8 -8 -8 -8 -8 -6 -6 -6 -6 -6 -5 -5 -5 -4 -3 -3 -2 -2 -2 ------- Run | Yrd Mat Min Mat Min Exi Min Mat Sto Rec Scr Fac Ext Cet Arc Hub Fac Was Fac Fac Res Tes Res Qua Frg Slots Evolved 16 | . . . 2 . . . 2 . . . 4 . . . . 2 . . 2 2 . 2 . . Power 1 | . . . . . . . . . . . . . . . . 1 . . . . . . . . Propulsion 6 | . . . 1 . . . 1 . . . 1 . . . . . . . 2 1 . . . . Utility 8 | . . . . . . . 1 . . . 3 . . . . 1 . . . 1 . 2 . . Weapon 1 | . . . 1 . . . . . . . . . . . . . . . . . . . . . Parts Attached 397 | 7 8 6 19 10 2 18 25 5 1 38 12 37 16 11 2 8 8 21 6 23 11 4 7 92 Power 48 | 1 1 2 3 1 . 5 2 1 . 1 1 4 2 1 . . 2 2 . 2 1 1 . 15 Engine 13 | 1 1 1 2 . . 3 1 . . . 1 2 1 . . . . . . . . . . . Core 13 | . . 1 1 1 . 2 1 1 . 1 . 2 . . . . 1 1 . . . . . 1 Reactor 22 | . . . . . . . . . . . . . 1 1 . . 1 1 . 2 1 1 . 14 Propulsion 112 | 2 1 1 7 2 . 6 11 2 . 10 4 12 6 1 1 1 1 4 4 2 1 3 . 30 Treads 38 | 2 1 . 7 2 . 1 5 . . 3 . 5 6 1 1 1 1 1 . . . . . 1 Leg 48 | . . . . . . 2 4 2 . 2 2 7 . . . . . . . . . . . 29 Wheel 6 | . . 1 . . . 3 1 . . . 1 . . . . . . . . . . . . . Hover 1 | . . . . . . . 1 . . . . . . . . . . . . . . . . . Flight 19 | . . . . . . . . . . 5 1 . . . . . . 3 4 2 1 3 . . Utility 134 | 2 1 1 5 1 2 3 5 1 . 15 4 11 5 7 . 5 3 10 1 13 4 . 3 32 Device 46 | 1 . . 1 1 . 1 2 . . 5 . 3 1 5 . 1 1 5 1 4 1 . 3 10 Storage 9 | 1 1 . 1 . 1 . . . . 1 . 2 . . . . . 1 . 1 . . . . Processor 31 | . . . . . . . . . . 3 2 2 . . . 2 . 3 . 5 1 . . 13 Hackware 6 | . . . . . . . . . . 2 1 . . 1 . . . . . 1 1 . . . Protection 42 | . . 1 3 . 1 2 3 1 . 4 1 4 4 1 . 2 2 1 . 2 1 . . 9 Artifact . | . . . . . . . . . . . . . . . . . . . . . . . . . Weapon 103 | 2 5 2 4 6 . 4 7 1 1 12 3 10 3 2 1 2 2 5 1 6 5 . 4 15 Energy Gun 19 | . 1 . 1 1 . 1 4 1 . 2 2 3 . 1 . . . . . . 2 . . . Energy Cannon 4 | . . . 1 . . . . . . . . 1 . . . . 1 . . . . . 1 . Ballistic Gun 44 | 2 3 1 . 5 . 2 1 . 1 3 . 4 3 1 1 . . . . 2 . . . 15 Ballistic Cannon 4 | . . . . . . . 2 . . . . . . . . . . 1 . . . . 1 . Launcher 9 | . 1 1 1 . . 1 . . . . . 1 . . . . 1 1 . . 2 . . . Special Weapon 7 | . . . . . . . . . . 7 . . . . . . . . . . . . . . Impact Weapon 4 | . . . . . . . . . . . 1 . . . . . . 2 . . 1 . . . Slashing Weapon 5 | . . . 1 . . . . . . . . 1 . . . 1 . . 1 . . . 1 . Piercing Weapon 7 | . . . . . . . . . . . . . . . . 1 . 1 . 4 . . 1 . Special Melee Weapon . | . . . . . . . . . . . . . . . . . . . . . . . . . Unidentified Prototypes 49 | . . . 3 1 . . 3 1 . . 2 1 3 1 . 1 2 3 . 3 6 . 3 16 Corrupted Parts 5 | . . . . . . . . . . . . . 1 3 . . . . . . . . . 1 System Corruption 19 | . . . . . . . . . . . . . 2 16 . . . . . . . . . 1 Parts Lost 86 | . . 2 1 1 . 10 3 1 . . 1 11 12 . . 1 . . . . . . 1 42 Power 10 | . . 1 . . . 1 . . . . . 2 1 . . . . . . . . . . 5 Propulsion 38 | . . 1 1 . . 4 2 1 . . . 4 5 . . . . . . . . . 1 19 Utility 25 | . . . . 1 . 2 1 . . . 1 4 3 . . . . . . . . . . 13 Weapon 13 | . . . . . . 3 . . . . . 1 3 . . 1 . . . . . . . 5 Highest Loss Streak 17 | . . 1 1 1 . 9 2 1 . . 1 6 8 . . 1 . . . . . . 1 17 To Critical Strikes 5 | . . . . . . . . . . . . . 1 . . 1 . . . . . . . 3 Average Backups 9 | 4 12 14 14 14 13 17 19 19 20 4 9 12 14 14 14 14 15 13 9 13 14 14 14 13 Power . | . 1 1 . . . 2 1 1 1 . . . . 1 1 . 1 1 1 1 1 1 1 1 Propulsion 1 | 1 2 1 5 5 4 5 5 5 6 . . 3 3 4 4 3 3 3 1 1 3 3 2 1 Utility 4 | 1 5 5 4 5 6 7 9 9 10 2 6 5 5 5 5 5 7 5 5 6 6 5 5 4 Weapon 2 | . 3 6 4 3 1 3 3 3 3 1 2 3 3 4 4 4 4 2 2 3 3 3 4 5 Tool/Special . | . . . . . . . . . . . . . . . . . . . . . . . . . Unused Backups 89 | . 3 2 9 1 . 3 9 3 . 10 6 7 2 1 . 3 1 3 2 7 4 2 1 10 Power 7 | . . . 1 . . 3 . . . 1 . 1 . . . . . . . 1 . . . . Propulsion 17 | . 1 . 2 . . . 4 1 . 3 3 2 . . . . . . . . . . . 1 Utility 39 | . 2 1 3 . . . 4 1 . 2 2 3 . 1 . 2 . 3 2 4 2 2 1 4 Weapon 22 | . . 1 3 1 . . 1 1 . 2 . 1 2 . . 1 1 . . 2 2 . . 4 Tool/Special 4 | . . . . . . . . . . 2 1 . . . . . . . . . . . . 1 Average Slot Usage (%) 59 | . 100 99 99 100 76 94 99 100 100 26 63 96 91 85 86 87 87 87 89 88 84 85 83 83 Engine 1 | . 14 10 10 . . 5 . 4 9 . 4 2 . . . . . . . . . . . . Core 1 | . . 3 . 11 11 5 9 4 . . . 3 . . . . . 4 5 4 1 . . . Reactor 1 | . . . . . . . . . . . . . 4 6 6 11 10 4 4 3 6 8 8 7 Treads 6 | . 28 14 29 33 33 13 15 . . . . 20 25 20 20 16 16 13 . . . . . . Leg 4 | . . . . . . 8 12 36 36 2 12 9 . . . . . . . . . . . 14 Flight 3 | . . . . . . . . . . 2 . . . . . . . 4 30 28 23 20 21 8 Device 9 | . 14 . 2 8 11 6 8 9 9 9 7 10 6 9 6 9 5 10 10 8 7 13 13 10 Storage 5 | . 14 14 11 11 11 11 9 9 9 4 6 6 6 6 6 5 5 5 5 4 4 4 4 4 Processor 4 | . . . . . . . . . . . 7 12 13 13 13 11 17 12 10 17 19 17 17 18 Protection 3 | . . 14 7 2 . 2 9 9 9 1 7 8 12 5 6 6 4 9 10 4 1 3 4 3 Energy Gun 2 | . 3 14 6 11 . 11 6 9 2 . 3 7 . 3 5 3 . . . . . . . . Ballistic Gun 6 | . 24 8 21 20 2 18 13 9 15 2 . 6 20 15 13 11 12 12 2 . . . . 6 Slashing Weapon 1 | . . . 5 . 7 . 4 9 9 . 5 2 . . . . . . 2 1 . . 2 1 Peak Build Rating 212 | 9 10 12 21 26 22 27 45 50 51 58 73 81 112 113 116 131 131 132 110 145 159 172 190 212 Average Rating 55 | 5 9 10 18 18 16 22 34 46 49 19 53 73 87 108 115 127 127 122 104 130 148 169 181 180 On Entrance 74 | 1 9 10 12 19 19 22 26 45 46 51 29 70 69 112 109 116 127 127 93 102 140 153 171 186 Avg Prop Armor Cover (%) 5 | . . 13 15 . . 12 12 . . 6 2 3 . 3 4 4 4 . 2 2 . . . 1 Naked Turns 83 | . . . . . . . . . . 83 . . . . . . . . . . . . . . Heaviest Build 112 | 13 30 32 38 39 57 63 69 69 69 68 38 63 74 74 66 96 93 105 42 57 60 58 67 112 Greatest Support 226 | 40 40 20 63 63 60 60 80 80 77 83 86 148 180 183 190 190 215 190 50 63 64 66 69 226 Greatest Overweight (x) 17 | . . 3 3 . . 17 6 . . 8 1 . . . . . . . . . 1 . . 1 Average Overweight (x) . | . . 2 . . . 2 2 . . 2 . . . . . . . . . . . . . . Largest Inventory Capacity 20 | 8 15 15 15 15 20 20 20 20 20 20 10 15 15 15 15 15 15 15 10 15 15 15 15 15 Average Capacity 11 | 6 14 15 15 15 18 20 20 20 20 7 10 13 15 15 15 15 15 14 10 13 15 15 15 15 Most Carried 20 | 6 15 15 15 15 19 20 20 20 20 20 10 15 15 15 15 15 15 15 10 15 15 15 15 15 Average Carried 9 | 4 12 14 14 14 14 18 19 19 20 4 9 12 14 14 15 14 15 13 9 13 14 14 14 13 Final Capacity 20 | 8 15 15 15 15 20 20 20 20 20 10 10 15 15 15 15 15 15 10 10 15 15 15 15 15 Final Carried 20 | 6 15 15 15 15 19 20 20 20 20 10 10 15 15 15 15 15 15 10 10 15 15 15 14 6 Scrap Suit Usage (%) 1 | . . . . . . . . . . 1 . . . . . . . . . . . . . 12 Parts Cannibalized 18 | . . . . . . . . . . . . . . . . . . . . . . . . 18 Class Distribution -------------------- 54% | Mutant 11% | Scavenger-Tank 5% | Scavenger-Gunner 4% | Tank 3% | Scientist-Ninja Dominant Class ---------------- Mutant | -10/Materials Mutant | -10/Mines Mutant | -9/Materials Scavenger-Gunner | -9/Mines Scavenger-Mutant | -9/Exiles Scavenger-Gunner | -8/Mines Scavenger-Tank | -8/Materials Commander-Mutant | -8/Storage Mutant | -8/Recycling Mutant | -8/Scraptown Mutant | -6/Factory Scavenger-Skirmisher | -6/Extension Scavenger-Tank | -6/Cetus Scavenger-Tank | -6/Archives Scavenger-Tank | -6/Hub_04(d) Scavenger-Tank | -5/Factory Scavenger-Assassin | -5/Waste Scavenger-Tank | -5/Factory Scientist-Scout | -4/Factory Scientist-Scout | -3/Research Scientist-Scout | -3/Testing Ninja | -2/Research Scientist-Ninja | -2/Quarantine Scavenger-Gunner | -2/Protoforge Resources | -11 -10 -10 -9 -9 -9 -8 -8 -8 -8 -8 -6 -6 -6 -6 -6 -5 -5 -5 -4 -3 -3 -2 -2 -2 ----------- Run | Yrd Mat Min Mat Min Exi Min Mat Sto Rec Scr Fac Ext Cet Arc Hub Fac Was Fac Fac Res Tes Res Qua Frg Matter Collected 13896 | 140 171 387 772 257 . 596 891 333 96 315 427 1030 407 520 184 431 409 911 140 496 378 141 255 4209 Remotely . | . . . . . . . . . . . . . . . . . . . . . . . . . Salvage Created 16579 | 61 258 193 897 167 . 766 808 789 234 . 436 1696 399 538 348 486 56 985 61 850 433 33 296 5789 Parts 853 | 6 32 20 60 16 . 38 42 46 11 . 20 62 12 27 26 29 3 35 5 25 26 3 27 282 Haulers Intercepted 18 | . 1 . 1 . . . 2 4 . . 1 1 . . . . . 2 . 5 1 . . . Recyclers Shooed 11 | 1 2 1 . . . . 1 . . . 3 1 . . . 1 . 1 . . . . . . Parts Field Recycled . | . . . . . . . . . . . . . . . . . . . . . . . . . Retrieved Matter . | . . . . . . . . . . . . . . . . . . . . . . . . . Parts Self-Destructed . | . . . . . . . . . . . . . . . . . . . . . . . . . Prevented . | . . . . . . . . . . . . . . . . . . . . . . . . . Parts Restored 1 | . . . . . . . . . . . . . . . . . . . . . . . . 1 Faulty 1 | . . . . . . . . . . . . . . . . . . . . . . . . 1 Kills | -11 -10 -10 -9 -9 -9 -8 -8 -8 -8 -8 -6 -6 -6 -6 -6 -5 -5 -5 -4 -3 -3 -2 -2 -2 ------- Run | Yrd Mat Min Mat Min Exi Min Mat Sto Rec Scr Fac Ext Cet Arc Hub Fac Was Fac Fac Res Tes Res Qua Frg Combat Hostiles Destroyed 280 | . 10 9 22 9 . 16 11 12 3 . 2 28 5 4 7 11 1 13 . . 7 . 7 103 Melee 11 | . . . . . . . . . 1 . 1 3 . . . . . . . . 3 . 3 . Guns 186 | . 5 3 17 4 . 12 9 12 2 . . 20 5 4 7 6 1 10 . . . . . 69 Cannons 6 | . . . . . . . 2 . . . . 2 . . . . . 2 . . . . . . AOE 74 | . 5 6 5 5 . 4 . . . . . 2 . . . 5 . . . . 4 . 4 34 Classes Destroyed 24 | 2 5 1 3 . . 2 . . . . 2 . . . . . . . . . . . . 9 Worker 18 | 1 . 3 1 1 . 2 1 2 . . 6 . . . . 1 . . . . . . . . Builder 7 | . 4 . . . . 1 1 . . . 1 . . . . . . . . . . . . . Tunneler 6 | 2 . 2 . . . 2 . . . . . . . . . . . . . . . . . . Hauler 18 | . 1 . 1 . . . 2 4 . . 1 1 . . . . . 2 . 5 1 . . . Recycler 9 | . . . 1 . . 1 2 1 1 . . 1 . . . . . . . 2 . . . . Mechanic 8 | . . . . . . . . . . . 2 . . . . . . 1 . . 1 . . 4 Operator 12 | . . . 1 . . . 1 . . . . . . 6 1 . . . 1 1 1 . . . Drone 6 | . . . . . . . . . . . . . . . . . . . . . . . . 6 Watcher 16 | . 1 . 2 . . . 2 1 . . . . 1 . . 1 . 1 1 2 . 1 1 2 Swarmer 85 | . 6 6 10 6 . 6 1 4 . . . 4 . . 3 4 . 3 . . 4 . 4 24 Saboteur 5 | . . . . . . . . . . . . . . . . . . . . . . . . 5 Grunt 62 | . 4 2 6 3 . 6 3 4 . . . 15 . . . . . 3 . . . . . 16 Brawler 5 | . . . . . . 2 . . . . . . . . . . . . . . . . . 3 Duelist 2 | . . . . . . . . . . . . . . . . . . . . . . . . 2 Protector 3 | . . . . . . . . . . . . . . . . . . . . . . . . 3 Sentry 41 | . . . 6 . . . 6 5 3 . 1 8 . 4 3 2 . 2 . . . . . 1 Demolisher 2 | . . 1 . . . . . . . . . . . . . . 1 . . . . . . . Specialist 1 | . . . . . . . . . . . . . . . . . . . . . . . . 1 Hunter 13 | . . . . . . 2 1 . . . . 1 . . . . . 1 . . . . . 8 Programmer 25 | . . . . . . . . . . . 1 . . . 1 5 . 4 . . 3 . 3 8 Cetus Guard 5 | . . . . . . . . . . . . . 5 . . . . . . . . . . . Hotshot 1 | . . . . . . . . . . . . . . . . . . . . . . . . 1 Striker 10 | . . . . . . . . . . . . . . . . . . . . . . . . 10 Executioner 13 | . . . . . . . . . . . . . . . . . . . . . . . . 13 Elite 3 | . . . . . . . . . . . . . . . . . . . . . . . . 3 Scrapoid 1 | . . . . . . . . . . . . . . . . . . . . . . . . 1 Surgeon 1 | . . . . . . . . . . . . . . . . . . 1 . . . . . . Wasp 1 | . . . . . . . . . . . . . . . . . . 1 . . . . . . Savage 1 | . . . . . . . . . . . . . 1 . . . . . . . . . . . Best Kill Streak 12 | 2 10 5 4 4 . 6 4 4 1 . 4 4 4 5 3 4 1 3 1 4 4 1 4 12 Combat Bots Only 12 | . 3 3 3 4 . 4 2 4 1 . 2 4 3 2 3 4 1 3 . . 4 . 4 12 Max Kills in Single Turn 5 | 1 5 5 3 3 . 4 1 2 1 . 1 2 1 2 1 3 1 1 1 1 2 1 1 5 Gunslinging 1 | . . . . . . . . . . . . 1 . 1 . . . . . . . . . 1 Exploded 4 | . 2 3 2 3 . 3 . . . . . 1 . . . 3 . . . . 2 . 1 4 Melee 1 | . . . . . . . . . 1 . 1 1 . . . . . . . . 1 . 1 . Uniques/NPCs Destroyed . | . . . . . . . . . . . . . . . . . . . . . . . . . Combat | -11 -10 -10 -9 -9 -9 -8 -8 -8 -8 -8 -6 -6 -6 -6 -6 -5 -5 -5 -4 -3 -3 -2 -2 -2 -------- Run | Yrd Mat Min Mat Min Exi Min Mat Sto Rec Scr Fac Ext Cet Arc Hub Fac Was Fac Fac Res Tes Res Qua Frg Hostile Shots Fired 2037 | . 61 27 96 27 . 112 66 42 16 . 29 416 97 15 99 62 . 38 18 22 28 7 27 732 Missed 733 | . 16 7 29 6 . 22 15 12 5 . 6 145 29 2 43 20 . 12 10 13 16 6 14 305 Hits 1304 | . 45 20 67 21 . 90 51 30 11 . 23 271 68 13 56 42 . 26 8 9 12 1 13 427 Melee 20 | . . . . . . 3 . . . . . . . . . . . . . . . . . 17 Projectile 1284 | . 45 20 67 21 . 87 51 30 11 . 23 271 68 13 56 42 . 26 8 9 12 1 13 410 AOE 3 | . . 2 . . . . . . . . . . . . . 1 . . . . . . . . Critical Strikes 60 | . . . 3 1 . 6 2 3 1 . . 4 9 . 1 4 . 1 . . . . . 25 Part Disruptions 2 | . . . . . . . . . . . . . . . . 1 . . . . . . . 1 Damage Taken 25542 | . 515 325 835 278 . 1318 707 403 162 . 294 2965 1848 306 600 954 . 570 122 147 278 24 358 12533 Core 2728 | . 76 60 124 28 . 193 73 15 . . 51 258 219 . 61 20 . . . 22 72 . . 1456 Absorbed by Shields 39 | . . . . . . . . . . . . . . . . . . . . . . . . 39 Reduced by Siege Mode 47 | . . . . . . . . . . . . . . 6 7 34 . . . . . . . . Redirected to Shielding 408 | . . 12 . . . . . . . . 12 14 26 . . . . . 46 42 . . . 256 Ignored by Resistances 69 | . . . . . . . . . . . . 69 . . . . . . . . . . . . Regen/Repaired (Parts) 1672 | . . . 41 . . . 109 43 . . . . . . . . 440 297 . 96 42 . 206 398 Core Remaining (%) 70 | 100 . 45 . . . 13 . . . 84 . . . . 30 . . 98 100 . 92 . . . Volleys Fired 842 | 8 41 25 82 13 . 68 48 41 10 . . 83 24 34 39 39 2 41 2 2 12 . 10 218 Largest 3 | 2 2 2 3 3 . 3 3 2 2 . . 3 3 3 3 3 3 3 1 1 1 . 1 3 Hottest 240 | 40 70 70 96 156 . 149 121 91 91 . . 168 100 115 240 150 105 190 120 120 120 . 120 120 Shots Fired 1925 | 16 73 40 196 26 . 160 127 82 20 . . 228 66 89 73 89 7 107 2 2 12 . 10 500 Gun 1786 | 16 64 36 191 20 . 158 100 82 20 . . 219 66 89 73 86 7 92 . . . . . 467 Cannon 71 | . . . . . . . 27 . . . . 7 . . . . . 15 2 2 9 . 6 3 Launcher 68 | . 9 4 5 6 . 2 . . . . . 2 . . . 3 . . . . 3 . 4 30 Special . | . . . . . . . . . . . . . . . . . . . . . . . . . Kinetic 1486 | 16 61 15 168 12 . 120 99 41 12 . . 116 66 88 47 59 7 92 . . . . . 467 Thermal 371 | . 3 21 23 8 . 38 28 41 8 . . 110 . 1 26 27 . 15 2 2 9 . 6 3 Explosive 65 | . 9 4 2 6 . 2 . . . . . 2 . . . 3 . . . . 3 . 4 30 Electromagnetic 3 | . . . 3 . . . . . . . . . . . . . . . . . . . . . Robot Hit Streak 66 | 3 10 15 15 12 . 66 14 13 11 . . 11 23 31 9 12 10 29 . . . . . 25 Robot Miss Streak 6 | 2 4 4 6 1 . 3 5 2 1 . . 5 6 6 6 5 . 3 . . . . . 4 Penetration Max 2 | . . . . . . . 1 1 . . . . 1 . 1 . . 1 . . . . . 2 Secondary Targets 41 | . . . 1 2 . 1 1 1 . . . 8 3 1 1 2 . 1 . . . . . 19 Max Gunslinging Chain 2 | . . . 1 1 . 1 1 1 . . . 2 1 1 1 1 . 1 . . . . . 1 Shots Hit Robots 1380 | 10 41 26 118 17 . 121 88 58 19 . 29 174 46 57 31 53 6 72 8 16 15 1 5 369 Core Hits 772 | 6 28 19 57 14 . 49 32 29 4 . 7 77 23 20 12 24 3 30 3 7 14 . 10 304 Critical Kills 53 | . . . 1 . . . 1 . . . . 1 3 6 1 . 1 5 . . 1 . . 33 Critical Parts Destroyed 64 | . . . 1 . . . . . . . 2 2 2 8 2 4 1 12 . . 1 . . 29 Critical Strikes 164 | . . 2 3 2 . 1 8 4 1 . 4 17 6 14 3 6 2 19 . 2 3 . . 67 Burn 23 | . . 2 1 2 . 1 3 4 1 . . 9 . . . . . . . . . . . . Destroy 122 | . . . 2 . . . 1 . . . . 2 6 14 3 6 2 19 . . . . . 67 Blast 1 | . . . . . . . 1 . . . . . . . . . . . . . . . . . Smash 5 | . . . . . . . . . . . 2 1 . . . . . . . . 2 . . . Sever 10 | . . . . . . . 3 . . . 2 5 . . . . . . . . . . . . Impale 3 | . . . . . . . . . . . . . . . . . . . . 2 1 . . . Melee Attacks 397 | . . . 7 . . . 8 5 5 . 47 35 . . . 4 . 6 25 71 74 20 54 36 Impact 75 | . . . . . . . . . . . 6 13 . . . . . 2 . . 25 7 22 . Slashing 128 | . . . 7 . . . 8 5 5 . 41 22 . . . 1 . . 3 7 . . 9 20 Piercing 194 | . . . . . . . . . . . . . . . . 3 . 4 22 64 49 13 23 16 Sneak Attacks 32 | . . . . . . . 2 1 2 . 11 2 . . . . . . 1 8 4 1 . . Combat Hostiles . | . . . . . . . . . . . . . . . . . . . . . . . . . Follow-up Attacks 14 | . . . . . . . . . . . 4 4 . . . . . . 1 1 3 . . 1 Damage Inflicted 49698 | 79 1147 698 1565 547 . 1673 1611 1217 492 . 1584 4638 1367 1499 947 2051 198 2427 382 1138 1406 108 676 22248 Guns 26987 | 79 325 241 1112 175 . 1263 1000 1146 338 . . 3227 1367 1499 919 1498 198 2051 . . . . . 10549 Cannons 878 | . . . . . . . 343 . . . . 189 . . . . . 346 . . . . . . Explosions 15194 | . 808 457 414 372 . 400 . . . . . 231 . . . 553 . 30 . . 391 . 356 11182 Melee 6543 | . . . 39 . . . 268 71 154 . 1540 991 . . . . . . 382 1138 1015 108 320 517 Ramming 96 | . 14 . . . . 10 . . . . 44 . . . 28 . . . . . . . . . Kinetic 23039 | 79 301 54 810 62 . 825 1055 616 210 . . 1601 1367 1499 745 1017 198 2051 . . . . . 10549 Thermal 4856 | . 24 187 302 113 . 438 288 530 128 . . 1815 . . 174 481 . 376 . . . . . . Explosive 14948 | . 808 457 198 372 . 400 . . . . . 231 . . . 553 . . . . 391 . 356 11182 Electromagnetic 216 | . . . 216 . . . . . . . . . . . . . . . . . . . . . Impact 1137 | . . . . . . . . . . . 203 413 . . . . . . . . 444 . 77 . Slashing 2991 | . . . 39 . . . 268 71 154 . 1337 578 . . . . . . 27 . . . . 517 Piercing 2415 | . . . . . . . . . . . . . . . . . . . 355 1138 571 108 243 . Highest Corruption 16 | . . . 3 3 3 3 . . . . 3 3 5 16 . 5 5 6 . . 4 . 4 14 Average Corruption 4 | . . . 2 3 3 3 . . . . 2 3 3 7 . 4 5 5 . . 3 . 2 6 Corruption Purged 29 | . . . . . . . . . . . . . . 21 . . . . . . 4 . 4 . Corruption Blocked . | . . . . . . . . . . . . . . . . . . . . . . . . . Effects 289 | . . . 12 9 11 15 . . . . 7 49 11 12 . 20 28 45 . . 8 . 2 60 Message Errors 57 | . . . 1 1 3 2 . . . . 3 10 2 4 . 2 5 11 . . 4 . 1 8 Matter Fused 67 | . . . 1 2 7 3 . . . . 2 8 2 1 . 5 8 12 . . 4 . 1 11 Heat Flow Errors 42 | . . . 3 3 1 1 . . . . 1 8 1 1 . 5 5 6 . . . . . 7 Energy Discharges 32 | . . . 1 1 . 2 . . . . . 7 2 1 . 2 6 5 . . . . . 5 Parts Rejected 4 | . . . . . . . . . . . . . . 1 . . . . . . . . . 3 Parts Fused 1 | . . . 1 . . . . . . . . . . . . . . . . . . . . . Data Loss (minor) 34 | . . . 3 1 . 4 . . . . . 3 2 . . 3 2 8 . . . . . 8 Data Loss (major) 13 | . . . 1 . . 1 . . . . . 4 . 1 . 1 1 1 . . . . . 3 Misfires 9 | . . . . . . . . . . . . 5 . . . 2 1 1 . . . . . . Alerts 10 | . . . 1 . . 1 . . . . 1 3 . 2 . . . . . . . . . 2 Misdirections 1 | . . . . . . . . . . . . . . . . . . . . . . . . 1 Weapon Failures 19 | . . . . 1 . 1 . . . . . 1 2 1 . . . 1 . . . . . 12 Overload Shots 3 | . . . . . . . . . . . . . . . 3 . . . . . . . . . Overflow Damage 1875 | . 27 12 21 10 . 12 . . 47 . 439 90 . . . 26 . 2 88 239 388 53 52 369 Projectiles 2 | . . . . . . . . . . . . . . . . . . 2 . . . . . . Explosions 484 | . 27 12 12 10 . 12 . . . . . . . . . 26 . . . . . . 52 333 Melee 1389 | . . . 9 . . . . . 47 . 439 90 . . . . . . 88 239 388 53 . 36 Knockbacks 8 | . 1 . . . . . 3 . . . . 1 . . 1 . . . . . 2 . . . Impact 5 | . 1 . . . . . . . . . . 1 . . 1 . . . . . 2 . . . Kinetic 3 | . . . . . . . 3 . . . . . . . . . . . . . . . . . Secondary . | . . . . . . . . . . . . . . . . . . . . . . . . . Self-Inflicted Damage 141 | . 74 44 15 8 . . . . . . . . . . . . . . . . . . . . Shots 7 | . 3 2 1 1 . . . . . . . . . . . . . . . . . . . . Rammed 4 | . 1 . . . . . . . . . . . . . 3 . . . . . . . . . Targets Rammed 14 | . 1 . . . . 2 . . . . 8 . . . 3 . . . . . . . . . Kicked 10 | . . . . . . 2 . . . . 8 . . . . . . . . . . . . . Crushed . | . . . . . . . . . . . . . . . . . . . . . . . . . Highest Temperature 423 | . 40 186 313 373 138 290 235 108 23 . 173 211 105 227 275 287 286 423 88 170 240 39 198 210 Average Temperature 71 | . 9 69 99 131 70 82 66 40 12 . 88 41 31 84 105 80 104 110 14 44 94 20 44 85 Received Heat Transfer 3715 | . 129 81 330 120 . 549 243 171 81 . . 1101 144 54 36 75 . 99 . 12 . . 9 481 Effects 10 | . . . 2 1 . 1 . . . . . . . . . 2 . 4 . . . . . . Shutdowns 1 | . . . . 1 . . . . . . . . . . . . . . . . . . . . Energy Bleed 3 | . . . 1 . . . . . . . . . . . . 2 . . . . . . . . Interference 4 | . . . . . . 1 . . . . . . . . . . . 3 . . . . . . Matter Decay 1 | . . . 1 . . . . . . . . . . . . . . . . . . . . . Damage (minor) 1 | . . . . . . . . . . . . . . . . . . 1 . . . . . . Siege Activations 9 | . . . . . . . . . . . . . . 3 2 3 1 . . . . . . . Total Turns 144 | . . . . . . . . . . . . . . 21 17 57 49 . . . . . . . Longest Duration 49 | . . . . . . . . . . . . . . 14 10 28 49 . . . . . . . Martial Activations . | . . . . . . . . . . . . . . . . . . . . . . . . . Shielding Activations . | . . . . . . . . . . . . . . . . . . . . . . . . . Robots Disrupted . | . . . . . . . . . . . . . . . . . . . . . . . . . Combat Hostiles . | . . . . . . . . . . . . . . . . . . . . . . . . . Robots Corrupted 3 | . . . . . . . . . . . 2 1 . . . . . . . . . . . . Combat Hostiles 2 | . . . . . . . . . . . 1 1 . . . . . . . . . . . . Parts Fried 4 | . . . 1 . . . . . . . 1 1 1 . . . . . . . . . . . Impact Corruptions 10 | . . . . . . . . . . . 4 2 . . . . . . . . 4 . . . Robots Melted . | . . . . . . . . . . . . . . . . . . . . . . . . . Combat Hostiles . | . . . . . . . . . . . . . . . . . . . . . . . . . Parts Melted 16 | . . 1 . . . . . 4 2 . . 6 1 . . . . . . . . . . 2 Heat Transferred 10624 | . 74 703 740 395 . 1036 925 1406 333 . . 3852 . . 222 592 . 346 . . . . . . Parts Sabotaged . | . . . . . . . . . . . . . . . . . . . . . . . . . Parts Stolen . | . . . . . . . . . . . . . . . . . . . . . . . . . Parts Stripped . | . . . . . . . . . . . . . . . . . . . . . . . . . Power Chain Reactions . | . . . . . . . . . . . . . . . . . . . . . . . . . Alert | -11 -10 -10 -9 -9 -9 -8 -8 -8 -8 -8 -6 -6 -6 -6 -6 -5 -5 -5 -4 -3 -3 -2 -2 -2 ------- Run | Yrd Mat Min Mat Min Exi Min Mat Sto Rec Scr Fac Ext Cet Arc Hub Fac Was Fac Fac Res Tes Res Qua Frg Maximum Alert Level 5 | . 1 . 1 1 . . . 1 . . . 2 1 . . . . 4 3 1 1 . 1 5 Low Security (%) 72 | 100 91 100 76 59 . 100 100 48 100 . 100 61 93 100 100 100 100 34 . . 63 100 88 46 Level 1 15 | . 8 . 23 40 . . . 51 . . . 31 6 . . . . 8 . 99 36 . 11 6 Level 2 2 | . . . . . . . . . . . . 7 . . . . . 11 . . . . . 5 Level 3 2 | . . . . . . . . . . . . . . . . . . 14 100 . . . . 4 Level 4 4 | . . . . . . . . . . . . . . . . . . 30 . . . . . 14 Level 5 2 | . . . . . . . . . . . . . . . . . . . . . . . . 22 High Security . | . . . . . . . . . . . . . . . . . . . . . . . . . Max Security . | . . . . . . . . . . . . . . . . . . . . . . . . . Peak Influence 2355 | 5 222 126 375 312 . 145 126 393 125 . 78 534 296 88 116 171 53 1537 774 370 284 142 336 2355 Initial 746 | . 3 51 . 135 . . 56 6 105 . . 7 296 . . 37 53 . 746 370 126 130 54 177 Average 226 | 1 109 27 106 189 . 31 35 184 56 . 18 142 86 18 51 80 5 678 737 264 173 107 134 730 Influence Increases 13879 | 15 393 276 785 267 . 502 498 921 247 . 228 1440 239 173 244 548 46 2372 101 228 475 116 553 3212 Destroy 0b10 Robot/C 6380 | . 200 180 440 180 . 320 220 420 60 . 40 760 160 80 140 220 20 780 . . 140 . 140 1880 Destroy 0b10 Robot/NC 570 | 15 30 25 30 5 . 30 45 40 5 . 55 20 10 30 5 10 . 55 10 50 15 5 5 75 Destroy Leader 1306 | . 44 40 116 30 . 60 88 130 . . 22 74 . . 50 62 . 176 2 14 20 2 22 354 Allied During Kill 1705 | . . . . . . . . 238 . . . 487 64 . . . 20 896 . . . . . . Successful Hack 576 | . 4 . 17 . . . 31 57 29 . 27 49 . . 8 46 . 69 14 43 35 37 50 60 Select Force Hacks 150 | . . . . . . . . . 150 . . . . . . . . . . . . . . . Disable Machine 840 | . 45 . 30 . . . 75 . . . 75 30 . 45 15 60 . 105 15 . 90 . 90 165 Destroy Structure 1497 | . 70 31 17 37 . 17 9 6 3 . 9 20 5 18 26 120 6 186 30 76 130 42 231 408 Partial Spotted 165 | . . . . . . . . . . . . . . . . 30 . . 15 15 45 15 15 30 Lose Combat Pursuer 690 | . . . 135 15 . 75 30 30 . . . . . . . . . 105 15 30 . 15 . 240 Influence Decreases 11534 | 10 265 409 438 532 82 357 627 666 518 . 211 927 769 173 168 472 198 849 917 711 466 253 332 1184 Entered New Map 2522 | . 2 82 . 212 82 . 89 10 166 . . 10 234 . . 39 99 . 777 337 98 103 42 140 Time Decay 6616 | 10 263 271 345 310 . 257 407 336 352 . 211 368 188 173 168 423 99 519 140 374 368 150 270 614 Lost Part 783 | . . 20 . 10 . 100 27 10 . . . 70 106 . . 10 . . . . . . 10 420 Lost Ally 966 | . . 36 . . . . . 160 . . . 179 241 . . . . 330 . . . . 10 10 Purge Threat 647 | . . . 93 . . . 104 150 . . . 300 . . . . . . . . . . . . Squads Dispatched 73 | . 1 . 3 . . . 1 1 . . 4 4 . . 2 6 . 15 3 15 6 2 2 8 Investigation 32 | . . . . . . . 1 1 . . 3 4 . . . 1 . 5 3 8 2 1 . 3 Extermination 18 | . . . . . . . . . . . 1 . . . 1 3 . 4 . 1 3 1 2 2 Reinforcement 17 | . 1 . 3 . . . . . . . . . . . 1 1 . 2 . 6 . . . 3 Assault 2 | . . . . . . . . . . . . . . . . . . 1 . . 1 . . . Garrison 4 | . . . . . . . . . . . . . . . . 1 . 3 . . . . . . Intercept . | . . . . . . . . . . . . . . . . . . . . . . . . . Searches Triggered . | . . . . . . . . . . . . . . . . . . . . . . . . . Construction Impeded . | . . . . . . . . . . . . . . . . . . . . . . . . . Haulers Reinforced 4 | . . . . . . . . . . . . . . . . . . 2 . 2 . . . . Active Scanning Responses . | . . . . . . . . . . . . . . . . . . . . . . . . . Cargo Convoy Interrupts . | . . . . . . . . . . . . . . . . . . . . . . . . . Stealth | -11 -10 -10 -9 -9 -9 -8 -8 -8 -8 -8 -6 -6 -6 -6 -6 -5 -5 -5 -4 -3 -3 -2 -2 -2 --------- Run | Yrd Mat Min Mat Min Exi Min Mat Sto Rec Scr Fac Ext Cet Arc Hub Fac Was Fac Fac Res Tes Res Qua Frg Distress Signals 25 | . 1 . 1 . . . 1 . . . . . 2 . 2 . . 3 1 6 . . . 8 Communications Jammed 28 | . . . . . . . 1 . . . . . . . . 1 . . . . 2 9 5 10 Distress Signals 28 | . . . . . . . 1 . . . . . . . . 1 . . . . 2 9 5 10 Times Spotted 608 | . 16 9 41 9 . 25 17 23 2 . 6 43 10 13 14 16 1 44 6 8 15 4 8 278 Peak Tracking Total 14 | . 5 3 5 4 . 4 3 4 1 . 3 6 5 1 4 4 . 7 4 4 4 4 3 14 Tactical Retreats 27 | . . . 5 1 . 2 2 1 . . . . . . . . . 3 1 1 . 1 . 10 Traps | -11 -10 -10 -9 -9 -9 -8 -8 -8 -8 -8 -6 -6 -6 -6 -6 -5 -5 -5 -4 -3 -3 -2 -2 -2 ------- Run | Yrd Mat Min Mat Min Exi Min Mat Sto Rec Scr Fac Ext Cet Arc Hub Fac Was Fac Fac Res Tes Res Qua Frg Traps Triggered 15 | . . . 1 1 . . . . . . 3 . . . . 1 . 2 1 . 2 2 . 2 Indirectly . | . . . . . . . . . . . . . . . . . . . . . . . . . Trap Hack Attempts . | . . . . . . . . . . . . . . . . . . . . . . . . . Triggered . | . . . . . . . . . . . . . . . . . . . . . . . . . Disarmed . | . . . . . . . . . . . . . . . . . . . . . . . . . Reprogrammed . | . . . . . . . . . . . . . . . . . . . . . . . . . Reused . | . . . . . . . . . . . . . . . . . . . . . . . . . Traps Extracted . | . . . . . . . . . . . . . . . . . . . . . . . . . Installed . | . . . . . . . . . . . . . . . . . . . . . . . . . Triggered . | . . . . . . . . . . . . . . . . . . . . . . . . . Machines | -11 -10 -10 -9 -9 -9 -8 -8 -8 -8 -8 -6 -6 -6 -6 -6 -5 -5 -5 -4 -3 -3 -2 -2 -2 ---------- Run | Yrd Mat Min Mat Min Exi Min Mat Sto Rec Scr Fac Ext Cet Arc Hub Fac Was Fac Fac Res Tes Res Qua Frg Machines Disabled 60 | . 3 . 2 . . . 5 . . . 5 6 . 3 1 4 . 7 1 . 6 . 6 11 Max in Single Turn 4 | . 2 . 1 . . . 1 . . . 1 2 . 1 1 1 . 4 1 . 1 . 1 2 Garrison Access 8 | . . . . . . . . 1 . . . . . . . 1 . 1 . 1 1 1 1 1 Machines Repaired . | . . . . . . . . . . . . . . . . . . . . . . . . . Machines Dismantled . | . . . . . . . . . . . . . . . . . . . . . . . . . Machines Sabotaged . | . . . . . . . . . . . . . . . . . . . . . . . . . Overloaded Fab Kills . | . . . . . . . . . . . . . . . . . . . . . . . . . Hacking | -11 -10 -10 -9 -9 -9 -8 -8 -8 -8 -8 -6 -6 -6 -6 -6 -5 -5 -5 -4 -3 -3 -2 -2 -2 --------- Run | Yrd Mat Min Mat Min Exi Min Mat Sto Rec Scr Fac Ext Cet Arc Hub Fac Was Fac Fac Res Tes Res Qua Frg Machines Accessed 170 | . 4 . 12 1 1 . 12 12 9 2 8 16 1 . 2 8 . 16 6 16 13 5 15 11 Terminals 100 | . 3 . 8 . . . 9 9 4 . 4 15 1 . 2 4 . 5 3 5 8 2 12 6 Fabricators 8 | . . . . . . . . . . . 1 . . . . 1 . 3 . 2 1 . . . Repair Stations 8 | . . . 1 . . . 1 1 . . . . . . . . . . . 3 1 . . 1 Recycling Units 25 | . 1 . 1 . . . 1 1 5 . 1 1 . . . 1 . 5 3 3 . 1 . 1 Scanalyzers 15 | . . . 2 . . . 1 . . . 1 . . . . 1 . 2 . 1 2 1 2 2 Garrison Access 10 | . . . . . . . . 1 . . 1 . . . . 1 . 1 . 2 1 1 1 1 Total Hacks 426 | . 11 . 37 1 1 . 34 34 30 22 22 29 2 . 6 30 . 34 14 37 25 9 22 26 Successful 220 | . 3 . 21 1 1 . 13 18 14 22 9 15 . . 2 17 . 17 6 19 11 6 9 16 Failed 201 | . 8 . 15 . . . 20 15 16 . 13 14 2 . 4 13 . 16 8 17 14 3 13 10 Catastrophic 41 | . 2 . 1 . . . 1 1 3 . 4 6 1 . 1 . . 4 3 6 2 1 3 2 Database Lockouts 5 | . . . 1 . . . 1 1 . . . . . . . . . 1 . 1 . . . . Manual 196 | . 8 . 6 . . . 20 12 15 . 13 15 2 . 6 21 . 19 12 13 12 5 11 6 Terminals 242 | . 9 . 22 . . . 25 27 16 . 9 27 2 . 6 18 . 11 7 10 18 5 18 12 Fabricators 22 | . . . . . . . . . . . 5 . . . . 6 . 6 . 3 2 . . . Repair Stations 22 | . . . 4 . . . 4 3 . . . . . . . . . . . 7 2 . . 2 Recycling Units 58 | . 2 . 2 . . . 3 2 14 . 4 2 . . . 1 . 11 7 7 . 1 . 2 Scanalyzers 43 | . . . 9 . . . 2 . . . 2 . . . . 4 . 5 . 8 2 1 3 7 Garrison Access 15 | . . . . . . . . 2 . . 2 . . . . 1 . 1 . 2 1 2 1 3 Terminal Hacks 89 | . 1 . 9 1 1 . 7 11 4 22 . 10 . . 1 4 . 3 1 1 4 1 2 6 Record 30 | . . . . . 1 . . . . 22 . . . . . . . . . . 1 . 1 5 Robot Schematic 2 | . . . . . . . . 1 1 . . . . . . . . . . . . . . . Robot Analysis 2 | . . . . . . . 1 1 . . . . . . . . . . . . . . . . Prototype ID Bank 8 | . . . . . . . 1 2 3 . . . . . . 1 . . . . 1 . . . Open Door 10 | . . . . 1 . . . 2 . . . 7 . . . . . . . . . . . . Level Access Points 1 | . . . . . . . . . . . . . . . 1 . . . . . . . . . Branch Access Points 2 | . . . 1 . . . 1 . . . . . . . . . . . . . . . . . Terminal Index 3 | . . . 1 . . . . . . . . . . . . 1 . 1 . . . . . . Alert Level 2 | . . . . . . . . 1 . . . . . . . . . . 1 . . . . . Unreport Threat 5 | . . . 1 . . . 1 1 . . . 2 . . . . . . . . . . . . Locate Traps 9 | . 1 . 2 . . . 1 . . . . . . . . 1 . 1 . 1 . 1 1 . Recall Investigation 2 | . . . . . . . . 1 . . . 1 . . . . . . . . . . . . Recall Reinforcements 1 | . . . 1 . . . . . . . . . . . . . . . . . . . . . Hauler Manifests 5 | . . . 1 . . . 1 1 . . . . . . . 1 . 1 . . . . . . Registered Components 2 | . . . 1 . . . 1 . . . . . . . . . . . . . . . . . Zone Layout 3 | . . . 1 . . . . 1 . . . . . . . . . . . . 1 . . . Proto ID Catalog 1 | . . . . . . . . . . . . . . . . . . . . . . . . 1 Protovariant Controls 1 | . . . . . . . . . . . . . . . . . . . . . 1 . . . Fabricator Hacks 7 | . . . . . . . . . . . 2 . . . . 1 . 2 . 1 1 . . . Network Status 5 | . . . . . . . . . . . 1 . . . . 1 . 1 . 1 1 . . . Load Schematic 2 | . . . . . . . . . . . 1 . . . . . . 1 . . . . . . Repair Station Hacks 12 | . . . 2 . . . . 3 . . . . . . . . . . . 4 2 . . 1 Scan Component 7 | . . . 1 . . . . 1 . . . . . . . . . . . 3 1 . . 1 Repair 4 | . . . 1 . . . . 1 . . . . . . . . . . . 1 1 . . . Refit 1 | . . . . . . . . 1 . . . . . . . . . . . . . . . . Recycling Unit Hacks 11 | . . . 1 . . . 1 1 3 . 1 1 . . . . . 2 1 . . . . . Retrieve Components 11 | . . . 1 . . . 1 1 3 . 1 1 . . . . . 2 1 . . . . . Scanalyzer 27 | . . . 6 . . . . . . . 2 . . . . 2 . 3 . 7 1 1 . 5 Insert Component 6 | . . . 2 . . . . . . . 1 . . . . . . 1 . 1 . . . 1 Analyze 6 | . . . 2 . . . . . . . . . . . . . . . . 1 . . . 3 Retrieve Study 15 | . . . 2 . . . . . . . 1 . . . . 2 . 2 . 5 1 1 . 1 Garrison Access Hacks 8 | . . . . . . . . 1 . . . . . . . 1 . 1 . 1 1 1 1 1 Seal Access 8 | . . . . . . . . 1 . . . . . . . 1 . 1 . 1 1 1 1 1 Unauthorized Hacks 66 | . 2 . 3 . . . 5 2 7 . 4 4 . . 1 9 . 6 4 5 2 3 6 3 Terminals 39 | . 2 . 2 . . . 3 2 2 . 1 3 . . 1 5 . 3 2 2 1 2 6 2 Assimilate 10 | . . . . . . . . . . . . 1 . . . 2 . 1 1 . . . 3 2 Botnet 24 | . . . 2 . . . 3 2 2 . . 2 . . 1 1 . 2 1 2 1 2 3 . Operators 3 | . . . . . . . . . . . 1 . . . . 2 . . . . . . . . Skim 2 | . 2 . . . . . . . . . . . . . . . . . . . . . . . Fabricators 6 | . . . . . . . . . . . 2 . . . . 3 . . . . 1 . . . Report 1 | . . . . . . . . . . . . . . . . 1 . . . . . . . . Liberate 2 | . . . . . . . . . . . 1 . . . . 1 . . . . . . . . Haulers 3 | . . . . . . . . . . . 1 . . . . 1 . . . . 1 . . . Repair Stations 1 | . . . . . . . 1 . . . . . . . . . . . . . . . . . Patch 1 | . . . . . . . 1 . . . . . . . . . . . . . . . . . Recycling Units 20 | . . . 1 . . . 1 . 5 . 1 1 . . . 1 . 3 2 3 . 1 . 1 Mask 2 | . . . 1 . . . 1 . . . . . . . . . . . . . . . . . Tunnel 5 | . . . . . . . . . 5 . . . . . . . . . . . . . . . Fedlink 13 | . . . . . . . . . . . 1 1 . . . 1 . 3 2 3 . 1 . 1 Scanalyzers . | . . . . . . . . . . . . . . . . . . . . . . . . . Garrison Access . | . . . . . . . . . . . . . . . . . . . . . . . . . Data Cores Recovered 4 | . . . . . . . 1 . . . . . . . 1 . . 1 . . 1 . . . Used 1 | . . . . . . . . . . . . . . . 1 . . . . . . . . . Hacking Detections 134 | . 4 . 12 . . . 12 9 7 . 7 10 1 . 2 5 . 12 5 12 10 4 12 10 Full Trace Events 11 | . . . . . . . . 1 2 . 1 2 . . . . . 2 1 1 1 . . . Feedback Events . | . . . . . . . . . . . . . . . . . . . . . . . . . Feedback Blocked . | . . . . . . . . . . . . . . . . . . . . . . . . . Robot Schematics Acquired 2 | . . . . . . . . 1 1 . . . . . . . . . . . . . . . Robots Built . | . . . . . . . . . . . . . . . . . . . . . . . . . Authchips . | . . . . . . . . . . . . . . . . . . . . . . . . . Time . | . . . . . . . . . . . . . . . . . . . . . . . . . Total Robot Build Rating . | . . . . . . . . . . . . . . . . . . . . . . . . . Part Schematics Acquired 2 | . . . 2 . . . . . . . . . . . . . . . . . . . . . Parts Built . | . . . . . . . . . . . . . . . . . . . . . . . . . Authchips . | . . . . . . . . . . . . . . . . . . . . . . . . . Time . | . . . . . . . . . . . . . . . . . . . . . . . . . Total Part Build Rating . | . . . . . . . . . . . . . . . . . . . . . . . . . Part Studies Acquired 15 | . . . 2 . . . . . . . 1 . . . . 2 . 2 . 5 1 1 . 1 Parts Repaired 4 | . . . 1 . . . . 1 . . . . . . . . . . . 1 1 . . . Time 140 | . . . 26 . . . . 38 . . . . . . . . . . . 38 38 . . . Parts Recycled . | . . . . . . . . . . . . . . . . . . . . . . . . . Recycled Matter . | . . . . . . . . . . . . . . . . . . . . . . . . . Retrieved Matter . | . . . . . . . . . . . . . . . . . . . . . . . . . Retrieved Components 42 | . . . 10 . . . 10 3 4 . 3 10 . . . . . . 2 . . . . . Parts Scanalyzed 5 | . . . 2 . . . . . . . . . . . . . . 1 . 1 . . . 1 Part Schematics Acquired 2 | . . . 2 . . . . . . . . . . . . . . . . . . . . . Parts Damaged . | . . . . . . . . . . . . . . . . . . . . . . . . . Bothacking | -11 -10 -10 -9 -9 -9 -8 -8 -8 -8 -8 -6 -6 -6 -6 -6 -5 -5 -5 -4 -3 -3 -2 -2 -2 ------------ Run | Yrd Mat Min Mat Min Exi Min Mat Sto Rec Scr Fac Ext Cet Arc Hub Fac Was Fac Fac Res Tes Res Qua Frg Used RIF Installer . | . . . . . . . . . . . . . . . . . . . . . . . . . Robots Hacked . | . . . . . . . . . . . . . . . . . . . . . . . . . Non-combat . | . . . . . . . . . . . . . . . . . . . . . . . . . Combat . | . . . . . . . . . . . . . . . . . . . . . . . . . Robot Hacks Applied . | . . . . . . . . . . . . . . . . . . . . . . . . . Relay Couplers Released 7 | . . . . . . . . . . . . . . . 3 4 . . . . . . . . Programmers 7 | . . . . . . . . . . . . . . . 3 4 . . . . . . . . Fabnet Peak Effective % . | . . . . . . . . . . . . . . . . . . . . . . . . . Robots Rewired 21 | . . . . . . . . . . . . 21 . . . . . . . . . . . . Allies Hacked 4 | . . . . . . . . . . . . . . . . . . 2 . . . . 2 . Hacks Repelled . | . . . . . . . . . . . . . . . . . . . . . . . . . Allies | -11 -10 -10 -9 -9 -9 -8 -8 -8 -8 -8 -6 -6 -6 -6 -6 -5 -5 -5 -4 -3 -3 -2 -2 -2 -------- Run | Yrd Mat Min Mat Min Exi Min Mat Sto Rec Scr Fac Ext Cet Arc Hub Fac Was Fac Fac Res Tes Res Qua Frg Total Allies 68 | . . 3 . . . . . 10 . . . 32 . . . . 20 1 . . . . 1 1 Largest Group 20 | . . 3 . . . . . 10 . . . 19 16 . . . 20 20 . . . . 1 1 Highest-Rated Group 800 | . . 40 . . . . . 173 . . . 489 407 . . . 800 798 . . . . 26 26 Highest-Rated Ally 50 | . . 16 . . . . . 29 . . . 39 31 . . . 50 50 . . . . 26 26 Initial UFD Resources 106 | . . . . . . . . . . . 22 32 36 36 36 40 50 50 60 77 93 96 106 106 Total Orders 1 | . . . . . . . . . . . . 1 . . . . . . . . . . . . STAY 1 | . . . . . . . . . . . . 1 . . . . . . . . . . . . Ally Attacks 464 | . . 12 . . . . . 86 . . . 131 42 . . . . 193 . . . . . . Total Damage 9554 | . . 78 . . . . . 942 . . . 2412 1134 . . . . 4988 . . . . . . Kills 62 | . . 2 . . . . . 10 . . . 14 4 . . . . 32 . . . . . . Allies Corrupted 6 | . . . . . . . . . . . . . . . . . . 6 . . . . . . Allies Melted 1 | . . . . . . . . . . . . . . . . . . . . . . . . 1 Intel | -11 -10 -10 -9 -9 -9 -8 -8 -8 -8 -8 -6 -6 -6 -6 -6 -5 -5 -5 -4 -3 -3 -2 -2 -2 ------- Run | Yrd Mat Min Mat Min Exi Min Mat Sto Rec Scr Fac Ext Cet Arc Hub Fac Was Fac Fac Res Tes Res Qua Frg Active Infowar (turns) 21748 | 19 793 . 412 485 708 669 756 357 636 1341 619 2620 435 697 520 1792 1186 1898 288 866 859 300 592 2900 Optics 11696 | . . . . . . . . . . . . 1760 435 697 520 1792 1186 151 . 703 859 300 592 2701 Sensors 14671 | . . . . 1 . . . 357 636 1337 619 1984 . . 419 1717 1186 1843 288 853 854 300 592 1685 Terrain 3638 | . . . . . . . . . . . . . . . . . . 326 288 797 299 300 380 1248 Seismic 3558 | 19 793 . 412 484 708 669 473 . . . . . . . . . . . . . . . . . Cloaking 924 | . . . . . . . . . . . . . . . . . . . . . . . 1 923 Jamming 3846 | . . . . . . . 283 . . . . . . . . 625 . 548 . 40 285 300 592 1173 ECM 6 | . . . . . . . . . . 4 . . . . . . . 2 . . . . . . Robot Analysis Total 2 | . . . . . . . 1 1 . . . . . . . . . . . . . . . . Derelict Logs Recovered 2 | . . 1 . . . . . . . 1 . . . . . . . . . . . . . . Drone Launches . | . . . . . . . . . . . . . . . . . . . . . . . . . Drone Recoveries . | . . . . . . . . . . . . . . . . . . . . . . . . . Exploration | -11 -10 -10 -9 -9 -9 -8 -8 -8 -8 -8 -6 -6 -6 -6 -6 -5 -5 -5 -4 -3 -3 -2 -2 -2 ------------- Run | Yrd Mat Min Mat Min Exi Min Mat Sto Rec Scr Fac Ext Cet Arc Hub Fac Was Fac Fac Res Tes Res Qua Frg Turns Passed 48713 | 108 793 976 1624 683 710 1027 1294 886 853 23760 912 2664 448 697 520 1792 1186 1898 288 866 859 300 592 2977 Spaces Moved 27259 | 49 399 612 812 357 432 487 625 529 612 8371 762 1178 211 158 222 939 427 1641 459 2075 1394 675 1239 2594 Core 5303 | 9 . . . . . 1 . . . 5293 . . . . . . . . . . . . . . Treads 5675 | 40 399 6 589 357 432 164 77 . . 100 . 723 211 158 222 939 427 831 . . . . . . Legs 5064 | . . . . . . 42 275 529 612 1519 762 455 . . . . . . . . . . . 870 Wheels 1382 | . . 606 223 . . 280 273 . . . . . . . . . . . . . . . . . Hover . | . . . . . . . . . . . . . . . . . . . . . . . . . Flight 9835 | . . . . . . . . . . 1459 . . . . . . . 810 459 2075 1394 675 1239 1724 Fastest Speed 17 | 50 160 110 110 160 160 101 101 127 130 26 45 106 160 160 160 160 160 32 25 19 19 19 17 24 Average Speed 113 | 139 160 111 149 160 160 154 152 128 130 165 96 140 160 160 160 160 160 98 27 24 26 26 27 54 Slowest Speed 900 | 160 160 240 160 160 160 900 240 130 130 450 190 160 160 160 160 160 160 163 29 28 106 28 32 170 Overloaded Moves 502 | . . . . . . . . . . 4 39 . . . . . . . . 43 36 19 107 254 Propulsion Burnouts . | . . . . . . . . . . . . . . . . . . . . . . . . . Robots Hopped 31 | . . . . . . . . . . . . . . . . . . 2 2 3 12 2 . 10 Potential Cave-ins 21 | . . . . . . . . . . . . . . . . . . . . . 5 . . 16 Cave-ins Triggered 1 | . . . . . . . . . . . . . . . . . . . . . . . . 1 Teleports 1027 | . . . . . . . . . . 1027 . . . . . . . . . . . . . . Exploration Rate (%) 61 | 3 55 97 86 73 63 82 53 65 89 95 22 93 69 88 24 26 78 47 10 58 81 22 88 58 Regions Visited 24 Branch Regions 14 Pre-discovered Areas 13 | . . 1 . . 1 . . 1 5 4 . 1 . . . . . . . . . . . . Known Exits Taken 13 | . . . 1 . . . 1 . . . 1 1 1 1 1 . . 1 1 1 1 1 1 . Unknown Exits Taken 9 | 1 1 1 . 1 1 1 . 1 1 1 . . . . . . . . . . . . . . Scrap Searched 6 | . . 1 . 2 . 1 . . . 2 . . . . . . . . . . . . . . Spaces Dug 221 | . 13 . 4 . . . . 4 3 . 9 4 . . 7 3 . 9 14 36 50 14 30 21 Terrain Destroyed 907 | . 69 32 15 65 . 28 6 4 3 . 9 12 11 28 28 70 4 69 15 38 79 14 76 232 Melee 173 | . . . 4 . . . . 4 3 . 9 4 . . . 1 . 6 13 36 31 14 28 20 Projectile 238 | . . . . . . 2 6 . . . . . 11 28 28 30 4 30 2 2 9 . 6 80 AOE 494 | . 69 32 11 65 . 26 . . . . . 8 . . . 39 . 33 . . 39 . 42 130 Terrain Rammed . | . . . . . . . . . . . . . . . . . . . . . . . . . Walls Destroyed . | . . . . . . . . . . . . . . . . . . . . . . . . . Machines Disabled . | . . . . . . . . . . . . . . . . . . . . . . . . . Actions | -11 -10 -10 -9 -9 -9 -8 -8 -8 -8 -8 -6 -6 -6 -6 -6 -5 -5 -5 -4 -3 -3 -2 -2 -2 --------- Run | Yrd Mat Min Mat Min Exi Min Mat Sto Rec Scr Fac Ext Cet Arc Hub Fac Was Fac Fac Res Tes Res Qua Frg Total 42853 | 73 493 866 1082 450 453 642 868 645 641 18317 870 1971 273 528 317 1144 928 1830 566 2312 1747 763 1399 3675 Wait 12690 | 4 25 213 89 46 . 33 85 42 13 9775 12 324 . 310 45 118 463 37 57 91 237 55 69 547 Move 27176 | 48 398 611 811 356 431 486 624 528 611 8370 761 1177 210 157 222 939 426 1636 454 2068 1370 670 1238 2574 Hop 28 | . . . . . . . . . . . . . . . . . . 2 2 3 11 2 . 8 Pick Up 319 | 6 13 5 24 6 10 11 29 5 . 42 18 27 11 2 . 9 4 13 6 21 4 6 5 42 Fast Attach 224 | 6 . . 3 2 . 10 10 1 . 42 7 11 5 11 1 7 12 16 6 11 13 2 3 45 Attach 120 | 1 . 2 2 1 3 3 3 1 . 14 11 8 8 1 . 4 . 13 4 2 1 3 3 32 Detach 69 | . . . 1 . . 1 . . . 17 . 4 2 2 . 1 1 11 2 6 3 1 . 17 Swap 361 | . 9 6 35 15 2 15 22 12 2 2 4 29 4 4 7 12 4 27 5 26 22 2 21 74 Drop 395 | . 6 4 28 11 7 13 39 7 . 55 8 28 9 7 1 11 16 28 5 29 17 7 9 50 Fire 842 | 8 41 25 82 13 . 68 48 41 10 . . 83 24 34 39 39 2 41 2 2 12 . 10 218 Melee 327 | . . . 7 . . . 8 5 5 . 41 31 . . . 4 . 6 23 53 57 15 41 31 Ram . | . . . . . . . . . . . . . . . . . . . . . . . . . Kick 10 | . . . . . . 2 . . . . 8 . . . . . . . . . . . . . Crush 3 | . 1 . . . . . . . . . . . . . 2 . . . . . . . . . Escape Stasis 27 | . . . . . . . . . . . . . . . . . . . . . . . . 27 Rewire 252 | . . . . . . . . 3 . . . 249 . . . . . . . . . . . . Trap . | . . . . . . . . . . . . . . . . . . . . . . . . . Miscellaneous 10 | . . . . . . . . . . . . . . . . . . . . . . . . 10 Route ------- -11/Scrapyard -10/Materials (discovered 2 exits: *Mat / [*Min]) -10/Mines (discovered 2 exits: *Mat x2) -9/Materials (discovered 4 exits: *Mat x3 / *Min) -9/Mines (discovered 2 exits: *Mat / *Exi) -9/Exiles -8/Mines -8/Materials (discovered 3 exits: [*Fac] / *Sto x2) -8/Storage (discovered 2 exits: [*Fac] / *Rec) -8/Recycling -8/Scraptown (discovered 2 exits: *Fac x2) -6/Factory (discovered 7 exits: Fac x3 / *Low x2 / *Ext x2) -6/Extension (discovered 2 exits: *Fac / *Cet) -6/Cetus (discovered 2 exits: *Fac / *Arc) -6/Archives (discovered 3 exits: *Fac / *Hub x2) -6/Hub_04(d) (discovered 4 exits: *Fac x4) -5/Factory (discovered 2 exits: *Fac / Upp) -5/Waste -5/Factory (discovered 6 exits: *Fac x4 / *Upp x2) -4/Factory (discovered 5 exits: *Res x4 / [Upp]) -3/Research (discovered 5 exits: *Res x3 / *Tes x2) -3/Testing -2/Research -2/Quarantine (discovered 3 exits: [*Acc] / *Sec / *Frg) -2/Protoforge History --------- Turn | Location | Event 11 | -11/Scrapyard | Discovered new exit (range 15) 109 | -11/Scrapyard | Entered Materials 301 | -10/Materials | Build established: Mutant 472 | -10/Materials | Discovered new exit (range 8) 614 | -10/Materials | Discovered new exit (range 9) 902 | -10/Materials | Entered Mines 1036 | -10/Mines | Assisted by bots powering up and referring to "LRC-V3" 1093 | -10/Mines | Received a Rocket Launcher from a helpful Derelict 1125 | -10/Mines | Assembled infested the area 1130 | -10/Mines | Assisted by a Guerilla fighting off Assembled 1233 | -10/Mines | A weapon hastily lodged in a ceiling crevice suddenly fell to the ground 1611 | -10/Mines | Core integrity fell below 50% 1649 | -10/Mines | Discovered new exit (range 6) 1669 | -10/Mines | Discovered new exit (range 6) 1737 | -10/Mines | Learned location of Zion (-7) 1878 | -10/Mines | Entered Materials 1878 | -9/Materials | Evolved 2 slots: Propulsion x1, Weapon x1 2142 | -9/Materials | Central database locked down 2363 | -9/Materials | Discovered new exit (range 12) 2651 | -9/Materials | Identified exit to Mines 2691 | -9/Materials | Repaired Lgt. Armor Plating 2842 | -9/Materials | Discovered new exit (range 8) 3216 | -9/Materials | Discovered new exit (range 7) 3502 | -9/Materials | Entered Mines 3516 | -9/Mines | Met a Derelict who couldn't figure out how to use a Trap Extractor 3740 | -9/Mines | Discovered new exit (range 6) 3762 | -9/Mines | Found a damaged Exp. Sensor Array with a note attached 3767 | -9/Mines | Found Prototype Device 3786 | -9/Mines | Identified Exp. Sensor Array 3864 | -9/Mines | Deemed a non-threat by the Exiles lab entrance 3966 | -9/Mines | Build established: Scavenger-Gunner 3995 | -9/Mines | Found a hidden stash of uninstalled traps 4179 | -9/Mines | Discovered new exit (range 5) 4185 | -9/Mines | Entered Exiles 4225 | -9/Exiles | Met 8R-AWN 4254 | -9/Exiles | Met EX-HEX 4315 | -9/Exiles | Met EX-DEC 4385 | -9/Exiles | Discovered new exit (range 10) 4527 | -9/Exiles | Build established: Scavenger-Mutant 4772 | -9/Exiles | Met EX-BIN 4895 | -9/Exiles | Entered Mines 4961 | -8/Mines | Core integrity fell below 50% 5334 | -8/Mines | Core integrity fell below 20% 5370 | -8/Mines | Lost 9 parts (4n2u3w) 5655 | -8/Mines | Build established: Scavenger-Gunner 5900 | -8/Mines | Discovered new exit (range 9) 5922 | -8/Mines | Entered Materials 5922 | -8/Materials | Evolved 2 slots: Propulsion x1, Utility x1 6230 | -8/Materials | Identified exit to Storage 6420 | -8/Materials | Build established: Scavenger-Tank 7121 | -8/Materials | Central database locked down 7137 | -8/Materials | Build established: Mutant 7171 | -8/Materials | Discovered new exit (range 11) 7216 | -8/Materials | Entered Storage 7395 | -8/Storage | Learned location of Armory (-4) 7482 | -8/Storage | Assisted by bots powering up and referring to "LRC-V3" 7544 | -8/Storage | Used back door to open Recycling access 7544 | -8/Storage | Discovered new exit (range 5) 7650 | -8/Storage | Central database locked down 7725 | -8/Storage | Repaired Lgt. Nuclear Core? 7768 | -8/Storage | Build established: Commander-Mutant 7813 | -8/Storage | Lost 5 allies 7905 | -8/Storage | Discovered new exit (range 16) 8029 | -8/Storage | Lost 4 allies 8102 | -8/Storage | Entered Recycling 8138 | -8/Recycling | Scanned before Scraplab entrance 8286 | -8/Recycling | Build established: Mutant 8943 | -8/Recycling | Entered Scraplab 8954 | -8/Recycling | Discovered new exit (range 2) 8955 | -8/Recycling | Entered Scraptown 9036 | -8/Scraptown | Heard Great Nut preacher, LISTEN AND RECITE! 9187 | -8/Scraptown | Discovered new exit (range 9) 9270 | -8/Scraptown | Visited Symbiants 9284 | -8/Scraptown | Visited SPCMW 9334 | -8/Scraptown | Visited Red Mages 9353 | -8/Scraptown | Visited Assassins FH 9382 | -8/Scraptown | Visited Comm Corps 9637 | -8/Scraptown | Visited Awakened 9658 | -8/Scraptown | Visited Cave Peace 9693 | -8/Scraptown | Visited UFD Registry 9693 | -8/Scraptown | Registered with UFD as "Nullback" 9739 | -8/Scraptown | Visited Cartography Club 9761 | -8/Scraptown | Visited Chapter 10 9782 | -8/Scraptown | Visited A0-MCA Data Center 9800 | -8/Scraptown | Visited Modified Component R&D 9839 | -8/Scraptown | Visited Supply Room 9862 | -8/Scraptown | Visited Infowarlord's Domain 9880 | -8/Scraptown | Visited Curators Association 10032 | -8/Scraptown | Visited Scrapoid Pod Storage 10043 | -8/Scraptown | Received an X-ray algorithm 10055 | -8/Scraptown | Visited LU-1G1's Boring Crew 10075 | -8/Scraptown | Visited Science Testing Area 10343 | -8/Scraptown | Learned location of Storage (-8) 10343 | -8/Scraptown | Learned location of Warlord (-5) 10343 | -8/Scraptown | Learned location of Extension (-6) 10343 | -8/Scraptown | Learned location of Testing (-3) 10343 | -8/Scraptown | Learned 12 Factory zone layouts 10343 | -8/Scraptown | Learned 12 Research zone layouts 10343 | -8/Scraptown | Learned 16 Research zone layouts 10343 | -8/Scraptown | Learned 4 Storage zone layouts 10343 | -8/Scraptown | Learned 8 Lower Caves zone layouts 10343 | -8/Scraptown | Learned 12 Proximity Caves zone layouts 10343 | -8/Scraptown | Learned 8 Upper Caves zone layouts 10343 | -8/Scraptown | Learned 24 Upper Caves zone layouts 10343 | -8/Scraptown | Learned 4 Armory zone layouts 10343 | -8/Scraptown | Learned location of 3 exits from Factory 10343 | -8/Scraptown | Learned location of 1 exit from Research 10343 | -8/Scraptown | Learned location of 3 exits from Proximity Caves 10347 | -8/Scraptown | Found Deep Structural Scanner 10378 | -8/Scraptown | Found Blink Core 10522 | -8/Scraptown | Given a B- rating by A0-MCA 10526 | -8/Scraptown | Found A0-MCA's Component Scanner 10732 | -8/Scraptown | Found Exp. Terrain Scan Processor 11347 | -8/Scraptown | Build established: Sprinter 11954 | -8/Scraptown | Build established: Mutant 12056 | -8/Scraptown | Discovered new exit (range 5) 12092 | -8/Scraptown | Found Scrap Suit 12430 | -8/Scraptown | Build established: Tank 12904 | -8/Scraptown | Found Scrapoid Pod 13034 | -8/Scraptown | Found Scrapoid Pod 13038 | -8/Scraptown | Found Scrapoid Pod 13160 | -8/Scraptown | Build established: Mutant 24661 | -8/Scraptown | Found Prototype Processor 24964 | -8/Scraptown | Found Potential Leg 27261 | -8/Scraptown | Scanned Subdweller tech in exchange for log data 27266 | -8/Scraptown | Learned location of 1 exit from Research 27396 | -8/Scraptown | Guru changed UFD alias to "Datacircuit" 32659 | -8/Scraptown | Met Optimus 32659 | -8/Scraptown | Accepted into 0bPrime 32715 | -8/Scraptown | Entered Factory 32715 | -6/Factory | Evolved 4 slots: Propulsion x1, Utility x3 32716 | -6/Factory | Identified exit to Lower Caves 32717 | -6/Factory | Identified exit to Extension 32717 | -6/Factory | Identified exit to Factory 32758 | -6/Factory | Identified Expert System 32899 | -6/Factory | Loaded intel: 8 recycling unit locations 33603 | -6/Factory | Discovered exit to Extension (range 11) 33627 | -6/Factory | Entered Extension 33681 | -6/Extension | Build established: Gladiator 34214 | -6/Extension | Rescued a captive Derelict 34218 | -6/Extension | Rescued a captive Derelict 34220 | -6/Extension | Rescued a captive Derelict 34509 | -6/Extension | Spotted B-75 Beast 34526 | -6/Extension | Spotted B-75 Beast 34526 | -6/Extension | Allies destroyed B-75 Beast 34549 | -6/Extension | Allies destroyed B-75 Beast 34611 | -6/Extension | Lost 10 allies 34617 | -6/Extension | Lost 6 parts (1p3n1u1w) 34794 | -6/Extension | Rescued a captive Derelict 34811 | -6/Extension | Rescued a captive Derelict 34811 | -6/Extension | Rescued a captive Derelict 34815 | -6/Extension | Rescued a captive Derelict 34974 | -6/Extension | Rescued a captive Derelict 34975 | -6/Extension | Rescued a captive Derelict 35402 | -6/Extension | Build established: Scavenger-Skirmisher 35414 | -6/Extension | Discovered new exit (range 22) 35415 | -6/Extension | Discovered exit to Factory (range 21) 35624 | -6/Extension | Watched by a mysterious "MATRIX" hacker. 35749 | -6/Extension | Rescued a captive Derelict 35799 | -6/Extension | Loaded intel: 1 recycling unit location 35799 | -6/Extension | Learned location of Protoforge (-2) 36232 | -6/Extension | Disrupted transfer network 36251 | -6/Extension | Identified exit to Cetus 36291 | -6/Extension | Entered Cetus 36291 | -6/Cetus | Accompanied by 16 allies 36306 | -6/Cetus | Spotted Cetus Guard 36307 | -6/Cetus | Spotted Cetus Guard 36311 | -6/Cetus | Spotted Cetus Guard 36314 | -6/Cetus | Spotted Cetus Guard 36318 | -6/Cetus | Build established: Commander-Tank 36341 | -6/Cetus | Allies destroyed Cetus Guard 36352 | -6/Cetus | Allies destroyed Cetus Guard 36354 | -6/Cetus | Destroyed Cetus Guard 36356 | -6/Cetus | Allies destroyed Cetus Guard 36365 | -6/Cetus | Lost 8 allies 36381 | -6/Cetus | Lost 8 parts (1p4n2u1w) 36451 | -6/Cetus | Ran an X-ray algorithm 36465 | -6/Cetus | Discovered new exit (range 22) 36478 | -6/Cetus | Ran an X-ray algorithm 36526 | -6/Cetus | Spotted Cetus Guard 36528 | -6/Cetus | Spotted Cetus Guard 36531 | -6/Cetus | Spotted Cetus Guard 36535 | -6/Cetus | Spotted Cetus Guard 36543 | -6/Cetus | Discovered exit to Factory (range 22) 36559 | -6/Cetus | Destroyed Cetus Guard 36573 | -6/Cetus | Core integrity fell below 50% 36583 | -6/Cetus | Destroyed Cetus Guard 36587 | -6/Cetus | Destroyed Cetus Guard 36593 | -6/Cetus | Destroyed Cetus Guard 36604 | -6/Cetus | Lost 8 allies 36609 | -6/Cetus | Met Revision 17 36616 | -6/Cetus | Lost 4 parts (1n1u2w) 36668 | -6/Cetus | Build established: Scavenger-Tank 36737 | -6/Cetus | Identified exit to Archives 36739 | -6/Cetus | Entered Archives 36865 | -6/Archives | Discovered new exit (range 22) 36983 | -6/Archives | Discovered new exit (range 22) 37016 | -6/Archives | System corruption reached 10% 37108 | -6/Archives | Discovered exit to Factory (range 22) 37435 | -6/Archives | Identified exit to Hub_04(d) 37436 | -6/Archives | Entered Hub_04(d) 37956 | -6/Hub_04(d) | Entered Factory 37956 | -5/Factory | Evolved 2 slots: Power x1, Utility x1 37957 | -5/Factory | Identified exit to Upper Caves 38500 | -5/Factory | Garrison activated, responded to threat 39324 | -5/Factory | Loaded intel: 8 recycling unit locations 39368 | -5/Factory | Found Powered Armor 39394 | -5/Factory | Build established: Scavenger-Assassin 39612 | -5/Factory | Discovered new exit (range 13) 39631 | -5/Factory | Identified exit to Factory 39667 | -5/Factory | Found Prototype Processor 39667 | -5/Factory | Identified Exp. Targeting Computer 39748 | -5/Factory | Sucked down chute 39748 | -5/Factory | Entered Waste 39749 | -5/Waste | Joined by Warlord forces that had cleared the area 39982 | -5/Waste | Discovered new exit (range 22) 40023 | -5/Waste | Found Broken Adv. Powered Armor 40884 | -5/Waste | Build established: Scavenger-Tank 40930 | -5/Waste | Identified exit to Factory 40934 | -5/Waste | Entered Factory 40934 | -5/Factory | Accompanied by 20 allies 41519 | -5/Factory | Discovered exit to Upper Caves (range 8) 41749 | -5/Factory | Discovered exit to Factory (range 12) 41846 | -5/Factory | Discovered exit to Factory (range 16) 41878 | -5/Factory | Central database locked down 42065 | -5/Factory | Garrison activated, responded to threat 42093 | -5/Factory | Loaded intel: 8 recycling unit locations 42205 | -5/Factory | Lost 5 allies 42330 | -5/Factory | P-70 Sage assimilated allied IR-7MH(g) 42438 | -5/Factory | P-70 Sage assimilated allied WL-N5M(m) 42475 | -5/Factory | Lost 4 allies 42562 | -5/Factory | Discovered exit to Factory (range 11) 42573 | -5/Factory | Discovered exit to Upper Caves (range 18) 42689 | -5/Factory | Discovered exit to Factory (range 16) 42734 | -5/Factory | First assault squad dispatched 42832 | -5/Factory | Entered another Factory area 42832 | -4/Factory | Evolved 2 slots: Propulsion x2 42833 | -4/Factory | Identified exit to Research 42889 | -4/Factory | Loaded intel: 8 recycling unit locations 42967 | -4/Factory | Discovered new exit (range 18) 43029 | -4/Factory | Build established: Scientist-Scout 43055 | -4/Factory | Discovered exit to Research (range 15) 43120 | -4/Factory | Entered Research 43120 | -3/Research | Evolved 2 slots: Propulsion x1, Utility x1 43121 | -3/Research | Identified exit to Research 43122 | -3/Research | Identified exit to Testing 43283 | -3/Research | Found Spectral Analyzer 43320 | -3/Research | Revision forces began assault on 0b10 43344 | -3/Research | Found Fusion Bomb Launcher 43375 | -3/Research | Spotted B-86 Titan 43535 | -3/Research | Found Prototype Processor 43535 | -3/Research | Identified Exp. Target Analyzer 43690 | -3/Research | Discovered exit to Testing (range 14) 43754 | -3/Research | Spotted B-86 Titan 43790 | -3/Research | Central database locked down 43820 | -3/Research | Research terminal network offline 43844 | -3/Research | Repaired Imp. Propulsion Shielding 43861 | -3/Research | Spotted B-86 Titan 43862 | -3/Research | Loaded intel: 5 recycling unit locations 43911 | -3/Research | Found Exp. Signal Interpreter 43986 | -3/Research | Entered Testing 44188 | -3/Testing | Found Prototype Launcher 44188 | -3/Testing | Identified Adv. Micro-nuke Launcher 44402 | -3/Testing | Found Prototype Energy Gun 44402 | -3/Testing | Identified Tachyon Dispersion Ray 44411 | -3/Testing | Discovered exit to Research (range 16) 44479 | -3/Testing | Repaired Imp. Propulsion Shielding 44635 | -3/Testing | Spotted Striker 44639 | -3/Testing | Spotted Striker 44705 | -3/Testing | Protovariant out of control (PG-N8G4KBJMSB) 44705 | -3/Testing | Unleashed a protovariant (PG-N8G4KBJMSB) 44718 | -3/Testing | Found Prototype Launcher 44718 | -3/Testing | Identified Z-bomb Delivery System 44803 | -3/Testing | Spotted 7N-801(K) 44845 | -3/Testing | Entered Research 44845 | -2/Research | Evolved 2 slots: Utility x2 44888 | -2/Research | Spotted B-90 Cyclops 44981 | -2/Research | Build established: Ninja 44991 | -2/Research | Discovered new exit (range 20) 45008 | -2/Research | Targeted by mysterious "MATRIX" hacker. 45013 | -2/Research | Loaded intel: 5 recycling unit locations 45144 | -2/Research | Identified exit to Quarantine 45145 | -2/Research | Entered Quarantine 45160 | -2/Quarantine | Found Alien Artifact 45220 | -2/Quarantine | Cryocooling Duct disabled 45235 | -2/Quarantine | Ambient heat levels rising (+20) 45235 | -2/Quarantine | Non-combat units ordered to evacuate 45284 | -2/Quarantine | Discovered new exit (range 21) 45333 | -2/Quarantine | Found Alien Slashing Weapon 45333 | -2/Quarantine | Identified Sigix Broadsword 45392 | -2/Quarantine | Build established: Scientist-Ninja 45654 | -2/Quarantine | Found Alien Artifact 45711 | -2/Quarantine | Spotted Fortress 45732 | -2/Quarantine | Discovered new exit (range 6) 45732 | -2/Quarantine | Discovered new exit (range 6) 45733 | -2/Quarantine | Identified exit to Protoforge 45734 | -2/Quarantine | Identified exit to Section 7 45737 | -2/Quarantine | Entered Protoforge 46705 | -2/Protoforge | Identified Terrabomb 46705 | -2/Protoforge | Used Terrabomb 46705 | -2/Protoforge | Spotted Overlord 46707 | -2/Protoforge | Spotted EXE-6 46709 | -2/Protoforge | Spotted EXE-6 46710 | -2/Protoforge | Spotted SKR-2 46710 | -2/Protoforge | Spotted SKR-2 46712 | -2/Protoforge | Spotted SKR-2 46720 | -2/Protoforge | Spotted EXE-6 46720 | -2/Protoforge | Spotted EXE-6 46728 | -2/Protoforge | UFD initiated attack on Protoforge (Readiness: High) 46728 | -2/Protoforge | Loaded intel: 3 recycling unit locations 46740 | -2/Protoforge | Superfortress began startup sequence 46825 | -2/Protoforge | Found Prototype Device 46825 | -2/Protoforge | Identified Crosscalibrator 46830 | -2/Protoforge | Found Cep. XC Strikerail 46833 | -2/Protoforge | Found Cep. XC Strikerail 46835 | -2/Protoforge | Found Faulty Cep. XC Strikerail 46855 | -2/Protoforge | Spotted Immortal 46855 | -2/Protoforge | Spotted Immortal 46910 | -2/Protoforge | UFD reported confirmed Drillbomb installation 46920 | -2/Protoforge | Optimus greeted in Protoforge 46951 | -2/Protoforge | Found Prototype Processor 46951 | -2/Protoforge | Identified Exp. Core Analyzer 46955 | -2/Protoforge | Spotted Striker 46956 | -2/Protoforge | Spotted Striker 47002 | -2/Protoforge | Spotted Striker 47005 | -2/Protoforge | Spotted Striker 47006 | -2/Protoforge | Spotted Executioner 47007 | -2/Protoforge | Spotted Striker 47020 | -2/Protoforge | Destroyed Executioner 47070 | -2/Protoforge | Lost 9 allies 47076 | -2/Protoforge | Spotted Hotshot 47077 | -2/Protoforge | Spotted Hotshot 47084 | -2/Protoforge | Spotted Executioner 47085 | -2/Protoforge | Spotted Executioner 47085 | -2/Protoforge | Spotted AP7-3 47130 | -2/Protoforge | Spotted Striker 47131 | -2/Protoforge | Spotted Striker 47143 | -2/Protoforge | Destroyed Striker 47150 | -2/Protoforge | Lost 3 parts (1n2u) 47152 | -2/Protoforge | Found Exp. Targeting Computer 47160 | -2/Protoforge | Lost 9 allies 47161 | -2/Protoforge | Found Cep. XC Strikerail 47191 | -2/Protoforge | Spotted Executioner 47191 | -2/Protoforge | Destroyed Executioner 47200 | -2/Protoforge | Crushed by falling debris 47207 | -2/Protoforge | Spotted Executioner 47207 | -2/Protoforge | Spotted Executioner 47219 | -2/Protoforge | Destroyed Executioner 47247 | -2/Protoforge | Found Exp. Targeting Computer 47249 | -2/Protoforge | UFD reported confirmed Drillbomb installation 47249 | -2/Protoforge | Found Exp. Core Analyzer 47262 | -2/Protoforge | Lost 7 allies 47299 | -2/Protoforge | Spotted Executioner 47302 | -2/Protoforge | P-80 Master assimilated allied TJ-Z1E(E) 47304 | -2/Protoforge | Spotted Striker 47306 | -2/Protoforge | Spotted Striker 47310 | -2/Protoforge | Spotted Executioner 47383 | -2/Protoforge | Destroyed 8 combat bots 47392 | -2/Protoforge | Lost 10 allies 47397 | -2/Protoforge | Spotted Executioner 47404 | -2/Protoforge | Spotted Striker 47420 | -2/Protoforge | Destroyed Striker 47442 | -2/Protoforge | Build established: Scavenger-Gunner 47442 | -2/Protoforge | Destroyed Executioner 47465 | -2/Protoforge | Spotted Striker 47469 | -2/Protoforge | Destroyed Striker 47498 | -2/Protoforge | Spotted Striker 47498 | -2/Protoforge | Spotted Striker 47501 | -2/Protoforge | Lost 8 allies 47510 | -2/Protoforge | Destroyed Striker 47524 | -2/Protoforge | Found Exp. Targeting Computer 47529 | -2/Protoforge | Found Exp. Core Analyzer 47531 | -2/Protoforge | Destroyed 12 combat bots 47541 | -2/Protoforge | Spotted Executioner 47544 | -2/Protoforge | Spotted Striker 47570 | -2/Protoforge | Destroyed Striker 47584 | -2/Protoforge | Destroyed Executioner 47593 | -2/Protoforge | Spotted B-90 Cyclops 47602 | -2/Protoforge | Lost 7 allies 47605 | -2/Protoforge | Destroyed 9 combat bots 47620 | -2/Protoforge | Spotted Executioner 47620 | -2/Protoforge | Spotted Striker 47623 | -2/Protoforge | Spotted Hotshot 47633 | -2/Protoforge | Spotted Hotshot 47640 | -2/Protoforge | Spotted Executioner 47642 | -2/Protoforge | Destroyed Hotshot 47644 | -2/Protoforge | Spotted Executioner 47645 | -2/Protoforge | Spotted Striker 47652 | -2/Protoforge | Spotted Striker 47676 | -2/Protoforge | Lost 8 allies 47679 | -2/Protoforge | Destroyed Executioner 47691 | -2/Protoforge | Destroyed Striker 47692 | -2/Protoforge | P-80 Master assimilated allied 02F69-D 47699 | -2/Protoforge | Core integrity fell below 50% 47739 | -2/Protoforge | Lost 17 parts (3p7n4u3w) 47749 | -2/Protoforge | Spotted Striker 47771 | -2/Protoforge | Spotted Striker 47811 | -2/Protoforge | Lost 14 allies 47825 | -2/Protoforge | Spotted Executioner 47826 | -2/Protoforge | Spotted Executioner 47831 | -2/Protoforge | Found Exp. Core Analyzer 47853 | -2/Protoforge | Spotted Executioner 47855 | -2/Protoforge | Spotted Striker 47867 | -2/Protoforge | Destroyed Striker 47871 | -2/Protoforge | Found Corrupted Prototype Device 47874 | -2/Protoforge | Found 0bPrime Scrap Suit 47875 | -2/Protoforge | Lost 3 allies 47882 | -2/Protoforge | Destroyed Executioner 47883 | -2/Protoforge | Spotted Executioner 47903 | -2/Protoforge | Destroyed 7 combat bots 47918 | -2/Protoforge | Spotted Executioner 47918 | -2/Protoforge | Spotted Striker 47933 | -2/Protoforge | Destroyed Executioner 47942 | -2/Protoforge | Spotted Executioner 47948 | -2/Protoforge | Spotted Striker 47952 | -2/Protoforge | P-80 Master assimilated allied 02F86-D 47973 | -2/Protoforge | System corruption reached 10% 47975 | -2/Protoforge | Destroyed Executioner 47997 | -2/Protoforge | Lost 13 allies 47998 | -2/Protoforge | Spotted Executioner 48010 | -2/Protoforge | Spotted Executioner 48016 | -2/Protoforge | Destroyed Executioner 48022 | -2/Protoforge | Spotted Executioner 48025 | -2/Protoforge | Spotted Striker 48065 | -2/Protoforge | Destroyed Executioner 48078 | -2/Protoforge | Spotted Executioner 48080 | -2/Protoforge | Spotted Striker 48081 | -2/Protoforge | Lost 8 parts (1p6n1u) 48086 | -2/Protoforge | Destroyed 9 combat bots 48094 | -2/Protoforge | Core integrity fell below 20% 48130 | -2/Protoforge | Lost 8 allies 48235 | -2/Protoforge | Identified Adv. Kinecellerator 48242 | -2/Protoforge | Spotted Striker 48271 | -2/Protoforge | Found Exp. Targeting Computer 48320 | -2/Protoforge | Spotted Striker 48326 | -2/Protoforge | Spotted Executioner 48423 | -2/Protoforge | Spotted Striker 48427 | -2/Protoforge | Spotted Striker 48428 | -2/Protoforge | Spotted Executioner 48436 | -2/Protoforge | P-80 Master assimilated allied 1B-NOI(E) 48447 | -2/Protoforge | Destroyed Executioner 48477 | -2/Protoforge | Destroyed 8 combat bots 48477 | -2/Protoforge | Lost 8 allies 48489 | -2/Protoforge | Spotted Striker 48489 | -2/Protoforge | Spotted Striker 48503 | -2/Protoforge | Destroyed Striker 48503 | -2/Protoforge | Destroyed Striker 48509 | -2/Protoforge | Spotted Executioner 48520 | -2/Protoforge | Spotted Executioner 48532 | -2/Protoforge | Destroyed Executioner 48544 | -2/Protoforge | Lost 5 allies 48577 | -2/Protoforge | Found UFD Drillbomb 48590 | -2/Protoforge | Installed UFD Drillbomb at designated target 48590 | -2/Protoforge | UFD reported confirmed Drillbomb installation 48619 | -2/Protoforge | Spotted Striker 48620 | -2/Protoforge | Spotted Executioner 48620 | -2/Protoforge | Spotted Striker 48633 | -2/Protoforge | Destroyed Striker 48694 | -2/Protoforge | Spotted Executioner 48694 | -2/Protoforge | Spotted Striker 48695 | -2/Protoforge | Spotted Executioner 48698 | -2/Protoforge | Spotted Striker 48709 | -2/Protoforge | Lost 4 allies 48714 | -2/Protoforge | Destroyed by Executioner with Helical Railgun Last Messages --------------- 48712_ G-73 Enforcer unfolds itself. 48712_ 02FBD-D destroyed. 48712_ E-15 Imp destroyed. 48712_ 02FBC-D suffers critical hit (Destroy). 48712_ Slug penetrates 02FBC-D. 48712_ Lugger 536 installing UFD Drillbomb. 48713_ Slug penetrates Striker. 48713_ Striker suffers critical hit (Destroy). 48713_ Slug penetrates Striker. 48713_ Lugger 536 installing UFD Drillbomb. 48714_ The unstable cave ceiling collapses. 48714_ Executioner destroyed. 48714_ P-80 Master hacks 02FBB-D, rebooting. 48714_ Slug penetrates Wall. 48714_ Slug penetrates Striker. 48714_ Biometal Leg destroyed. 48714_ Slug penetrates Striker. 48714_ Destroyed Adv. Heat Sink. 48714_ Lugger 536 installing UFD Drillbomb. 48714_ Penetrated by Slug. Map ----- +----------------------------------------------------+ | ??##???##? ![! "" + % % % | | ??##???##? =[%* ### # = | | ??##???##? =! %[*= " % | | ??##???### # ! [%=! " !# #*== | | ??##???## # ! ==] %* ! ! ] | | ??##????? # % * =|% s %% ##% % % | | ??########## # =% *= % s%%% % % % & %% | | ??########### ! l g[%=%!%[ !%SS% %%% % % % | | ????????!=%/=% lg%gK! =%!%%% SS%=%%& %% % %% | | ?????????##"% m % =% %% % %% ! | | ?????????#### E % [% * %% | | ?????????##?## p ! =][% % % | | ???????####?# %% % !m %% " | | ???????####?## = = ![ * !*%!! # | | ???????##????### " ! !%*/;";%!=[*% % % "## | | ???????##??????### !===%!! ; [E[;; #! ### | | ???????##?#?#?#?#" #; ;=]=[=;# ;;;;;;% = #%% "## | | ???????####?####### ; ; ! = !=EE A % /*#% " # | | ????? ?############ " ; [%!% " #""!%/%!%!]## | | ###????###############;;; &%[%|!% " # #%=#==[!### | | ###?? ?######?## * ; *%;! " " ####!=%%=## | | ?##? ######### " !"] ; ; " #######%!%*## | | ?##?? ######### "" =%[ ;=*%; "" #######[!!### | | ?##? ######### !![ ;= # """ #######]!!### | | ?## ######### " "[ ;K! # "" ######% ### | | ### ######### """!;@! # ######" ### | | ### ######### "" !;! %;#"""########### ### | | ### ######### =# ! ; ############" ### | | ### ######### #%!%; ############## ### | | ### ############;###"#* %;############### ### | | ### ################"%%% ;############## ### | | ### ==!/ ; ############ ### | | ### ! ! ############### ### | | ### ############### ### | | ?# #######"###"###%# ###### "" # ### | | # ################### ;####### ""S # # | | # ############ # # # "" # # | | # ############ """" + + """# # # | | # ############ """" # # """# # # " | | + ############ """" # # """# """ + + " | | # ############ """" # # # """ # # " | | # ############ # # # """ # # | | # ##############+#### ######## + # " | | # ############## #### ##########/#######+#### | | # ############## #### ###### ## | | # ##############+####+###### """" ## """S""" | | ### ############# # """" ## """ """ | | ### ############# """" """" # """" ## | | ### ############# """" """" # """" ## """"""" | | # # #### """" """" # !## """"""" | +----------------------------------------------------+ Best States ------------- Heat Dissipation 87 Coolant Potential 120 Energy Generation 49 Energy Capacity 600 Matter Stores 300 Matter Capacity 300 Sight Range 24 Robot Scan Range 20 Terrain Scan Range 24 Terrain Scan Density 1010 Jamming Range 16 Cloak Strength 3 Additional Mass Support 25 EM Shielding 4 Armor Coverage 1250 Resistance: TH 15 Core Shielding 20 Propulsion Shielding 66 Utility Shielding 66 Weapon Shielding 90 Phase Shifting 15 Evasion (%) 77 Targeting Accuracy 36 Melee Accuracy 8 Target Analysis 8 Core Analysis 12 Recoil Reduction 5 Kinecelleration 50 Salvage Targeting 4 Offensive Hacking 14 Defensive Hacking 10 Item Schematics ----------------- Imp. VTOL Module | -9/Materials | Scanalyzed Lgt. Armor Plating | -9/Materials | Scanalyzed Robot Schematics ------------------ M-14 Sweeper | -8/Storage | Hacked M-13 Machinist | -8/Recycling | Hacked Fabricated ------------ Nothing Repaired ---------- Lgt. Armor Plating | 54% | -9/Materials Lgt. Nuclear Core | 14% | -8/Storage Imp. Propulsion Shielding | 4% | -3/Research Imp. Propulsion Shielding | 58% | -3/Testing Studied --------- Lgt. Assault Rifle | -9/Materials | Hacked Imp. Treads | -9/Materials | Hacked Missile Launcher | -6/Factory | Hacked Nuclear Pulse Thruster | -5/Factory | Hacked Field Propulsion Drive | -5/Factory | Hacked Nuclear Pulse Array | -5/Factory | Hacked Mic. Fission Core | -5/Factory | Hacked Force Lance | -3/Research | Hacked Hyp. Railgun | -3/Research | Hacked Mic. Antimatter Reactor | -3/Research | Hacked Q-thruster | -3/Research | Hacked Fusion Bomb Launcher | -3/Research | Hacked Enh. Nova Cannon | -3/Testing | Hacked Impulse Thruster Array | -2/Research | Hacked Lgt. Antimatter Reactor | -2/Protoforge | Hacked Alien Tech Used ----------------- Sigix Broadsword Terrabomb Achievements -------------- None Challenges ------------ None Game ------ Seed ProcessingMolecularAutominer Manual? 0 Play Time 07:33:52 Cumulative 315.7 hours Start 2026.01.31 @ 20:32:52 End 2026.02.01 @ 22:36:37 Sessions 3 Manual Loads 0 Difficulty Rogue Special Mode None Game No. 179 Rogue 175 Adventurer 4 Explorer 0 Win Type - Total 10 Types 8/0/2/0/0/0/0/0/0/0 Lore% 88 Gallery% 77 Achievement% 57 Wizard Run 0 Options --------- Layout 1 ASCII 0 Keyboard 1 Movement Numpad Keybinds 1 Fullscreen 1 Font 24/Smallcaps Map View 50x35 Zoom Use 0% Tactical HUD 1 Map Filters NONE Filters NONE Steam 1 RUN: c7240565-a514-4f7c-926a-3fa6b6b1e572